[Event "Krakow Championship-A 2022"]
[Site "Krakow"]
[Date "2022.06.25"]
[Round "1.10"]
[White "Shehzad, Shazil"]
[Black "Romanishin, Oleg M"]
[Result "1/2-1/2"]
[ECO "C87"]
[WhiteElo "2237"]
[BlackElo "2400"]
[Annotator "TA"]
[PlyCount "141"]
[EventDate "2022.06.25"]
[EventType "swiss"]
[EventCountry "POL"]
[SourceTitle "playchess.com"]
[Source "ChessBase"]
[SourceQuality "1"]
[TimeControl "40/5400+30:1800+30"]

{[%evp 19,141,35,35,32,28,31,43,47,55,52,54,35,42,35,58,50,58,58,55,58,54,46,35,12,60,50,52,29,40,10,7,-32,1,11,31,34,59,0,-12,-21,23,-25,-25,-30,0,0,0,0,-29,-70,0,-160,-150,-183,0,0,0,0,-3,-65,-44,-82,-23,-18,-18,-12,-14,-14,-22,-23,-11,-30,-13,-28,0,0,0,-12,-8,-8,-8,-18,-20,-30,0,0,0,-64,-64,-61,-60,-85,-85,-85,-85,-85,-85,-85,-85,-85,-85,-85,-85,-85,-85,-85,-85,-85,-8,-8,-8,-8,-8,-8,-8,-8,-8,-8,-8,-8,-8,-8,-8,-8]} 1. e4 {[%emt 0:00:06]} e5 {[%emt 0:00:05]} 2. Nf3 {[%emt 0:00:09]} Nc6 {[%emt 0:00:05]} 3. Bb5 {[%emt 0:00:19]} a6 {[%emt 0:00:06]} 4. Ba4 {[%emt 0:00:04]} Nf6 {[%emt 0:00:07]} 5. O-O {[%emt 0:00:38]} Be7 {[%emt 0:00:08]} 6. Re1 {[%emt 0:00:15]} d6 {[%emt 0:01:23]} 7. c3 {[%emt 0:01:51]} Bg4 {[%emt 0:01:12]} 8. h3 {[%emt 0:02:35]} Bh5 {[%emt 0:00:06]} 9. d3 {[%emt 0:02:37]} O-O {[%emt 0:00:25]} 10. Nbd2 {[%emt 0:01:01][%cal Bb1d2,Bd2f1,Bf1g3][%mdl 32]} Nd7 {[%emt 0:00:27] is now debated instead of 10...b5.} 11. Nf1 {[%emt 0:01:54] C87: Closed Ruy Lopez: Steinitz-type lines after 6 Re1 d6.} Nc5 {[%emt 0:00:47]} 12. Bc2 {[%emt 0:07:37]} Ne6 {[%emt 0:00:49]} 13. Ng3 {[%emt 0:07:54] White is slightly better.} Bg6 {[%emt 0:04:03]} 14. Bb3 {[%emt 0:24:03] [#]} Ng5 $146 {[%emt 0:30:07]} ({Predecessor:} 14... Na5 15. Bd5 c5 16. a3 Nc7 17. b4 cxb4 18. axb4 Nc6 19. Ba2 d5 20. Bd2 d4 21. cxd4 exd4 {0-1 (47) Hovhannisyan,R (2607)-Eljanov,P (2702) Legnica 2013}) 15. Nxg5 {[%emt 0:05:05]} Bxg5 {[%emt 0:00:08]} 16. Qg4 {[%emt 0:06:50]} Bf6 {[%emt 0:12:39]} 17. Be3 {[%emt 0:02:59]} Na5 {[%emt 0:02:34]} 18. Bc2 {[%emt 0:06:59]} c5 {[%emt 0:00:06]} 19. a3 {[%emt 0:01:25]} Rc8 {[%emt 0:02:17]} 20. Rad1 {[%emt 0:07:37]} b5 {[%emt 0:13:41]} 21. Rd2 {[%emt 0:05:21]} b4 {[%emt 0:05:02]} (21... Be7 $11) 22. axb4 {[%emt 0:03:31]} cxb4 {[%emt 0:00:06]} 23. c4 {[%emt 0:02:15]} Nb7 {[%emt 0:07:36]} 24. b3 {[%emt 0:01:51]} a5 {[%emt 0:01:31]} 25. d4 {[%emt 0:01:24]} exd4 {[%emt 0:04:36]} (25... a4 $5) 26. Bxd4 {[%emt 0:00:06]} Bxd4 {[%emt 0:00:12]} 27. Rxd4 {[%emt 0:00:03]} a4 {[%emt 0:00:09]} 28. h4 {[%emt 0:02:41]} (28. bxa4 $14 Nc5 29. Qd1) 28... axb3 {[%emt 0:03:02]} 29. Bxb3 {[%emt 0:01:56]} Na5 {[%emt 0:03:54][%cal Bb7a5,Ba5c6,Bc6e5][%mdl 32]} 30. Ba2 {[%emt 0:01:06]} (30. Re3 $142 Nc6 31. Rd5) 30... b3 $11 {[%emt 0:00:48]} 31. Bb1 {[%emt 0:00:15]} Nc6 {[%emt 0:02:35]} (31... Rxc4 32. Rxc4 Nxc4 33. Qe2 $14) (31... Nxc4 32. h5 $14) (31... h5 $5 {[%cal Rh5g4]} 32. Qd1 Qb6 $17) 32. Rd5 {[%emt 0:01:34] Strongly threatening h5.} Ne5 {[%emt 0:00:12]} 33. Qf4 {[%emt 0:00:11]} f6 {[%emt 0:02:41]} (33... Nxc4 34. h5 $14) 34. Red1 {[%emt 0:00:26]} Rxc4 {[%emt 0:01:46]} (34... Nxc4 $15 35. h5 Bf7) 35. Rxd6 $2 {[%emt 0:00:35]} ({Better is} 35. h5 $1 $11 Be8 36. Rxd6) 35... Qc7 $1 $17 {[%emt 0:00:25]} 36. h5 {[%emt 0:00:40] [#]} Bf7 {[%emt 0:00:17]} (36... Nf7 $1 $19 {[%cal Og6h5] aiming for ...Bxh5!} 37. hxg6 Nxd6) 37. h6 $11 {[%emt 0:00:32] And now hxg7 would win.} Bg6 {[%emt 0:00:41]} 38. Qe3 {[%emt 0:02:03]} Rc3 {[%emt 0:00:27]} 39. Qd4 {[%emt 0:00:38]} (39. Qb6 $1 $11) 39... Rc1 {[%emt 0:01:01]} 40. hxg7 {[%emt 0:00:28] [#]} Kxg7 {[%emt 0:00:37]} (40... Rc8 $1 $17 {Hoping for ...Rxd1+.} 41. Rf1 (41. Rxf6 $2 Rxd1+ 42. Qxd1 Qc1 $17) (41. f4 $2 Nf7 $19) 41... Qc5 42. Qxc5 R8xc5) 41. f4 $1 {[%emt 0:06:47]} Rxd1+ {[%emt 0:03:44]} 42. Qxd1 {[%emt 0:00:39]} Nf7 {[%emt 0:00:02]} 43. Rd7 {[%emt 0:05:39] The board is on fire.} Qxf4 {[%emt 0:01:26]} 44. Qxb3 {[%emt 0:00:32]} Kh8 {[%emt 0:12:30] Threatens to win with ...Rb8.} 45. Nf1 {[%emt 0:07:05]} Ne5 {[%emt 0:00:22]} 46. Rd2 {[%emt 0:01:06]} Rg8 {[%emt 0:03:18][%cal Bf8g8,Bg8c8,Bc8b8][%mdl 32]} ({Don't play} 46... Bxe4 47. Rf2 (47. Qb4 $2 Nf3+ 48. gxf3 Rg8+ 49. Kf2 Rg2+ 50. Kxg2 Bxf3+ 51. Kf2 Qxb4 $19) 47... Bf3 48. Qc3 $14 (48. gxf3 $2 Rg8+ 49. Kh1 Qg5 $19)) 47. Rf2 {[%emt 0:02:15]} Qg5 {[%emt 0:01:33]} 48. Qe3 {[%emt 0:01:16]} Rc8 {[%emt 0:04:26]} 49. Qxg5 {[%emt 0:00:47]} fxg5 {[%emt 0:00:02]} 50. Rc2 {[%emt 0:01:35]} Rb8 {[%emt 0:00:25]} 51. Rc5 {[%emt 0:01:22]} Rxb1 {[%emt 0:01:32]} 52. Rxe5 {[%emt 0:00:08][%mdl 4096] Endgame KRB-KRN} h6 {[%emt 0:00:10]} 53. Re7 {[%emt 0:03:00]} (53. Kf2 $11) 53... Re1 $15 {[%emt 0:02:53]} 54. Kf2 {[%emt 0:00:11]} Rxe4 {[%emt 0:00:07]} 55. Rxe4 {[%emt 0:00:46]} Bxe4 {[%emt 0:00:02] KB-KN} 56. g3 {[%emt 0:01:44]} Kg7 {[%emt 0:00:29]} 57. Ke3 {[%emt 0:00:06]} Bb7 {[%emt 0:00:31]} 58. Kd4 {[%emt 0:01:20]} Kf6 {[%emt 0:00:26]} 59. Ne3 {[%emt 0:00:04]} Bf3 {[%emt 0:00:24]} 60. Nf1 {[%emt 0:00:37]} h5 {[%emt 0:01:38]} 61. Ne3 {[%emt 0:02:23]} Bb7 {[%emt 0:00:54]} ({Much worse is} 61... h4 $6 62. gxh4 gxh4 63. Nf1 $11) 62. Nd1 {[%emt 0:01:03]} Ke6 {[%emt 0:01:06]} ({Much weaker is} 62... h4 $6 63. gxh4 gxh4 64. Ke3 $11) 63. Ne3 {[%emt 0:00:40]} h4 {[%emt 0:00:09]} (63... Bc6 $17 64. Nf1 Bb7) 64. gxh4 $11 {[%emt 0:00:30] The position is equal.} gxh4 {[%emt 0:00:06]} 65. Nf1 $1 {[%emt 0:00:13]} Kf5 {[%emt 0:00:27] ( -> ...Kf4)} (65... Bg2 $5 66. Nh2 h3 $11) 66. Ke3 $1 {[%emt 0:00:05]} Kg4 {[%emt 0:01:25]} 67. Kf2 {[%emt 0:00:05]} Kf4 {[%emt 0:00:24]} 68. Nh2 {[%emt 0:01:00]} h3 {[%emt 0:00:43]} 69. Nf1 {[%emt 0:00:14]} Bc6 {[%emt 0:00:31]} 70. Nh2 {[%emt 0:00:03]} Bg2 {[%emt 0:00:55]} 71. Nf1 {[%emt 0:00:01] Weighted Error Value: White=0.21 (precise) /Black=0.14 (very precise)} 1/2-1/2

[Event "Krakow Championship-A 2022"]
[Site "Krakow"]
[Date "2022.06.25"]
[Round "1.11"]
[White "Murphy, Conor E"]
[Black "Gahan M G"]
[Result "1/2-1/2"]
[ECO "A48"]
[WhiteElo "2395"]
[BlackElo "2248"]
[Annotator "TA"]
[PlyCount "135"]
[EventDate "2022.06.25"]
[EventType "swiss"]
[EventCountry "POL"]
[SourceTitle "playchess.com"]
[Source "ChessBase"]
[SourceQuality "1"]
[TimeControl "40/5400+30:1800+30"]

{[%evp 9,135,25,22,22,35,25,33,0,8,6,34,36,50,45,82,62,80,63,77,85,82,75,76,65,80,78,96,89,118,90,78,95,94,85,89,89,113,75,69,59,88,83,98,87,87,81,110,95,154,145,175,187,206,197,198,160,200,204,192,124,127,92,95,16,17,17,191,0,0,0,0,0,33,12,119,75,69,89,88,13,32,0,0,0,0,0,0,0,0,0,8,8,8,8,8,8,134,122,333,157,213,118,118,0,0,0,0,0,0,0,0,0,0,0,0,0,0,0,0,0,0,0,0,0,0,0,0,0]} 1. d4 {[%emt 0:09:18]} Nf6 {[%emt 0:00:53]} 2. Nf3 {[%emt 0:00:29]} g6 {[%emt 0:00:03]} 3. Nbd2 {[%emt 0:00:45]} d5 {[%emt 0:00:07]} 4. b4 {[%emt 0:00:53]} Bg7 {[%emt 0:00:08]} 5. e3 {[%emt 0:00:26]} a5 {[%emt 0:01:51]} 6. b5 {[%emt 0:00:59] D02: 1 d4 d5 2 Nf3 sidelines, including 2...Nf6 3 g3 and 2...Nf6 3 Bf4.} c5 {[%emt 0:00:21]} 7. bxc6 {[%emt 0:01:54]} Nxc6 $1 {[%emt 0:03:13] 7...Nxc6 is better than 7...bxc6.} 8. Bb5 {[%emt 0:04:55] White is slightly better.} O-O {[%emt 0:03:57]} 9. O-O {[%emt 0:01:55]} a4 {[%emt 0:06:37]} 10. Ba3 {[%emt 0:04:23]} Bd7 {[%emt 0:03:04]} 11. Rb1 {[%emt 0:07:36]} Na5 {[%emt 0:04:56] [#]} 12. Bd3 $146 {[%emt 0:04:23]} ({Predecessor:} 12. Ne5 Bxb5 13. Rxb5 Re8 14. Qe2 e6 15. c4 dxc4 16. Ndxc4 Nxc4 17. Nxc4 {1-0 (46) Popovic,D (2488)-Robulj,N (2296) Belgrade 2019}) 12... Re8 {[%emt 0:13:49]} 13. Ne5 {[%emt 0:02:36]} Qc7 {[%emt 0:02:01]} 14. Nxd7 {[%emt 0:07:06]} Nxd7 {[%emt 0:00:48]} 15. Bb5 {[%emt 0:03:19]} e6 {[%emt 0:04:32]} 16. c4 {[%emt 0:11:41]} dxc4 {[%emt 0:07:00]} 17. Rc1 {[%emt 0:03:02][%cal Rd2c4]} (17. Bxa4 $6 Rec8 $11) 17... Rec8 {[%emt 0:05:39]} 18. Nxc4 $1 {[%emt 0:01:53]} (18. Qxa4 $2 Nc6 19. Qc2 Rxa3 $19) 18... Qd8 {[%emt 0:00:36]} 19. Bxd7 {[%emt 0:06:00] White is more active. A strong pair of Bishops.} Rxc4 {[%emt 0:00:40]} 20. Bb5 {[%emt 0:09:46]} ({But not} 20. Bxa4 Bxd4 21. Bb5 (21. exd4 Rxd4 22. Qc2 Rc4 $11) 21... Rxc1 22. Bxc1 (22. Qxc1 Qd5 $11) 22... Bg7 $11) 20... Rxc1 {[%emt 0:00:35]} 21. Bxc1 {[%emt 0:06:27]} Nc6 {[%emt 0:02:36]} 22. Bxa4 {[%emt 0:00:45]} Nb4 {[%emt 0:00:37]} 23. a3 {[%emt 0:01:29]} Nd5 {[%emt 0:00:58] And now ...Nc3 would win.} 24. Bb3 {[%emt 0:03:22]} b5 {[%emt 0:01:26]} 25. Qd3 {[%emt 0:01:09]} Qd7 {[%emt 0:00:50]} 26. e4 {[%emt 0:02:02]} Nb6 {[%emt 0:00:40]} 27. Rd1 {[%emt 0:00:23]} Bf8 {[%emt 0:00:29]} 28. d5 {[%emt 0:02:21][%cal Bd4d5,Bd5d6][%mdl 32]} e5 {[%emt 0:03:03]} ({Black should try} 28... exd5 29. Qd4 (29. exd5 Bxa3 30. Be3 Nc4 $16) 29... Na4) 29. d6 $16 {[%emt 0:01:29]} Ra6 {[%emt 0:02:28]} 30. Bb2 {[%emt 0:01:21]} Nc4 {[%emt 0:03:41]} 31. Bxc4 {[%emt 0:00:12]} bxc4 {[%emt 0:00:04]} 32. Qxc4 {[%emt 0:00:13]} Rxd6 {[%emt 0:00:17]} 33. Rxd6 {[%emt 0:01:21]} Qxd6 $18 {[%emt 0:00:02][%mdl 4096] Endgame KQB-KQB} 34. Qd5 {[%emt 0:00:49] Against Qd1+} (34. g3 $1 $18) 34... Qb8 $16 {[%emt 0:01:37]} 35. Qd2 {[%emt 0:00:44]} Qb3 {[%emt 0:00:55]} 36. Qc1 {[%emt 0:00:30]} (36. h3 $16) 36... f6 $11 {[%emt 0:06:57]} 37. h3 {[%emt 0:00:16]} Qd3 $2 {[%emt 0:00:45] [#]} (37... g5 $11 {and Black has nothing to worry.}) 38. Qe3 $2 {[%emt 0:00:43]} (38. a4 $1 $18) 38... Qc2 {[%emt 0:01:43]} 39. Qc1 {[%emt 0:00:32]} Qxe4 {[%emt 0:00:12]} 40. Qd1 {[%emt 0:00:28]} Qc4 {[%emt 0:01:11]} 41. a4 {[%emt 0:05:46]} (41. Bc1 $5 {[%cal Ra3a4]}) 41... Qa2 {[%emt 0:01:18]} (41... Bc5 $11) 42. Bc3 {[%emt 0:01:43]} Qc4 {[%emt 0:03:10]} 43. Be1 {[%emt 0:20:29]} Bc5 {[%emt 0:00:38]} 44. a5 {[%emt 0:00:42]} (44. Qd8+ $16 Kg7 45. a5) 44... Bd4 {[%emt 0:00:26]} 45. Qd2 {[%emt 0:01:47]} Kf7 {[%emt 0:03:41]} 46. Qb4 {[%emt 0:00:35]} Qxb4 {[%emt 0:01:16]} 47. Bxb4 {[%emt 0:00:01] KB-KB} Ke6 {[%emt 0:00:29]} 48. Kf1 {[%emt 0:00:17]} Kd5 {[%emt 0:00:05]} 49. Ke2 {[%emt 0:01:30]} f5 {[%emt 0:00:06]} 50. f3 {[%emt 0:00:51]} Kc4 $1 {[%emt 0:01:00]} 51. Bd6 {[%emt 0:00:33]} Kb5 {[%emt 0:01:17]} 52. Kd3 {[%emt 0:01:21]} Kc6 {[%emt 0:04:01]} (52... Bb2 $11) 53. Be7 {[%emt 0:00:31] Hoping for Bf6.} Kd5 $2 {[%emt 0:03:19]} (53... Ba7 $16) 54. Bg5 $18 {[%emt 0:00:18] Strongly threatening Be3.} Kc5 {[%emt 0:00:50]} (54... Bf2 $16 55. Be3 Bg3) 55. Bd8 {[%emt 0:00:55]} ({White should play} 55. Be3 $18 {aiming for Bxd4+.} Bxe3 56. Kxe3) 55... Kb5 $16 {[%emt 0:02:04] [#]} 56. f4 {[%emt 0:00:41]} (56. Bf6 $1 $16) 56... Ba1 $11 {[%emt 0:00:11] Threatens to win with ...e4+. The position is equal.} 57. fxe5 {[%emt 0:00:31]} Bxe5 {[%emt 0:00:02]} 58. Bb6 {[%emt 0:00:17]} Bf6 {[%emt 0:00:54]} 59. Bd4 {[%emt 0:00:41]} Bd8 {[%emt 0:01:36]} 60. Bc3 {[%emt 0:00:01]} Bxa5 {[%emt 0:01:00]} 61. Bxa5 {[%emt 0:00:57]} Kxa5 {[%emt 0:00:04] K3P-KPP} 62. Kc4 {[%emt 0:00:17]} (62. Kd4 $5 {[%cal Rd4e5]} Kb6 63. Ke5 $11) 62... Kb6 {[%emt 0:02:01] ...Kc6 is the strong threat.} 63. Kd5 {[%emt 0:00:05]} Kc7 {[%emt 0:01:23]} 64. Ke6 {[%emt 0:00:01]} Kd8 {[%emt 0:00:10]} 65. Kf7 {[%emt 0:01:42]} f4 {[%emt 0:05:42]} 66. Kf6 {[%emt 0:00:29]} Kd7 {[%emt 0:00:19]} 67. Kg5 {[%emt 0:00:30]} Ke6 {[%emt 0:00:21]} 68. Kxf4 {[%emt 0:00:04] Weighted Error Value: White=0.20 (precise) /Black=0.26 (precise)} 1/2-1/2

[Event "Krakow Championship-A 2022"]
[Site "Krakow"]
[Date "2022.06.25"]
[Round "1.12"]
[White "Balaji Sekar"]
[Black "Fus, Jakub"]
[Result "1/2-1/2"]
[ECO "B12"]
[WhiteElo "1189"]
[BlackElo "2378"]
[Annotator "TA"]
[PlyCount "82"]
[EventDate "2022.06.25"]
[EventType "swiss"]
[EventCountry "POL"]
[SourceTitle "playchess.com"]
[Source "ChessBase"]
[SourceQuality "1"]
[TimeControl "40/5400+30:1800+30"]

{[%evp 10,82,18,4,18,12,8,9,8,9,18,18,18,16,18,22,17,0,14,8,22,17,31,0,0,0,14,0,22,22,31,28,26,19,79,42,79,79,79,83,89,84,107,73,73,73,77,77,289,258,195,0,0,0,750,747,725,724,717,687,694,634,616,0,0,0,0,0,0,0,0,0,0,0,0]} 1. e4 {[%emt 0:00:04]} c6 {[%emt 0:00:22]} 2. d4 {[%emt 0:00:09]} d5 {[%emt 0:00:08]} 3. e5 {[%emt 0:00:44]} Bf5 {[%emt 0:00:25]} 4. Nd2 {[%emt 0:00:31]} e6 {[%emt 0:00:43]} 5. Nb3 {[%emt 0:00:58]} Nd7 {[%emt 0:01:37]} 6. Nf3 {[%emt 0:01:26]} a6 {[%emt 0:00:42] B12: Caro-Kann: Advance Variation.} (6... c5 {keeps more tension.} 7. dxc5 a6 8. Be2 Bxc5 9. Nxc5 Qa5+) 7. Be2 {[%emt 0:02:28]} c5 {[%emt 0:00:35]} 8. dxc5 {[%emt 0:01:31]} Bxc5 {[%emt 0:00:07]} 9. Nxc5 {[%emt 0:08:30]} Nxc5 {[%emt 0:00:28]} 10. O-O {[%emt 0:04:58]} Ne7 {[%emt 0:00:18]} 11. Nd4 {[%emt 0:07:15]} O-O {[%emt 0:01:04]} 12. Be3 {[%emt 0:01:41]} Qc7 {[%emt 0:04:40]} 13. f4 {[%emt 0:02:06]} Be4 {[%emt 0:01:12] [#]} 14. c3 $146 {[%emt 0:00:56]} ({Predecessor:} 14. g4 b5 15. Qe1 Na4 16. Rb1 Nc6 17. b3 Nb6 18. Rc1 Nd7 19. c3 Rac8 20. Qg3 {0-1 (55) Shuvalova,P (2489)-Keymer,V (2591) Chess.com INT 2021}) 14... Nf5 {[%emt 0:01:40]} 15. Nxf5 {[%emt 0:01:25]} exf5 {[%emt 0:00:46]} 16. Bxc5 {[%emt 0:06:15]} Qxc5+ {[%emt 0:00:26]} 17. Qd4 {[%emt 0:00:02]} Qc6 {[%emt 0:05:41]} 18. Bd1 {[%emt 0:04:23]} Qc4 {[%emt 0:11:40]} 19. Qxc4 {[%emt 0:09:47]} dxc4 {[%emt 0:00:18]} 20. Be2 {[%emt 0:00:02]} b5 {[%emt 0:02:09]} 21. Rfd1 {[%emt 0:01:10]} Rfd8 {[%emt 0:02:06]} (21... f6 $11) 22. Kf2 {[%emt 0:00:27]} Kf8 {[%emt 0:01:52]} 23. Rxd8+ {[%emt 0:03:40]} Rxd8 {[%emt 0:00:05]} 24. Rd1 {[%emt 0:00:11] Prevents Rd2.} Rxd1 {[%emt 0:00:39]} 25. Bxd1 $16 {[%emt 0:00:02][%mdl 4096] Endgame KB-KB} Ke7 {[%emt 0:00:31]} 26. g3 {[%emt 0:01:23]} Ke6 {[%emt 0:00:10]} 27. Ke3 {[%emt 0:00:08]} Kd5 {[%emt 0:39:32]} 28. b4 {[%emt 0:00:20] aiming for Bh5.} g6 {[%emt 0:04:46] Against Bh5} (28... f6 $16) 29. Be2 {[%emt 0:03:33]} Bg2 {[%emt 0:07:08]} 30. Bf3+ $2 {[%emt 0:06:07]} ({White should play} 30. g4 $18) 30... Bxf3 $11 {[%emt 0:00:05]} 31. Kxf3 {[%emt 0:00:06] Hoping for Ke3. KP-KP} Ke6 $2 {[%emt 0:04:45][%mdl 8192]} (31... a5 $11 32. bxa5 Kc6) 32. Ke3 $18 {[%emt 0:00:31]} Kd5 {[%emt 0:00:06] [#]} 33. h3 $1 {[%emt 0:00:55][%cal Bh2h3,Bh3h4][%mdl 32]} h6 {[%emt 0:02:14]} 34. h4 {[%emt 0:00:33]} h5 {[%emt 0:00:43]} 35. a3 {[%emt 0:03:21]} a5 {[%emt 0:00:37]} 36. Kf3 $2 {[%emt 0:03:09]} ({Only move:} 36. bxa5 $18 {Strongly threatening a6.} Kc5 37. a6) 36... axb4 $1 $11 {[%emt 0:00:12] The position is equal.} 37. axb4 {[%emt 0:00:01] [#] White threatens Ke3 and mate.} Ke6 {[%emt 0:00:12]} 38. Ke2 {[%emt 0:00:15]} f6 {[%emt 0:00:07]} 39. exf6 {[%emt 0:00:05]} Kxf6 {[%emt 0:00:04]} 40. Ke3 {[%emt 0:01:39]} Ke6 {[%emt 0:00:03]} 41. Kd4 {[%emt 0:30:05] Intending Kc5 and mate.} Kd6 {[%emt 0:30:04] Black escapes into a draw.  Weighted Error Value: White=0.31/Black=0.23 (precise)} 1/2-1/2

[Event "Krakow Championship-A 2022"]
[Site "Krakow"]
[Date "2022.06.25"]
[Round "1.13"]
[White "Malicka, Maria"]
[Black "Gjestemoen-VonHirsch, Andre"]
[Result "0-1"]
[ECO "B34"]
[WhiteElo "2377"]
[BlackElo "2236"]
[Annotator "TA"]
[PlyCount "84"]
[EventDate "2022.06.25"]
[EventType "swiss"]
[EventCountry "POL"]
[SourceTitle "playchess.com"]
[Source "ChessBase"]
[SourceQuality "1"]
[TimeControl "40/5400+30:1800+30"]

{[%evp 14,84,0,0,0,0,0,0,0,0,-6,0,0,0,0,0,0,0,0,-3,0,0,0,-1,0,0,19,-5,-10,-6,-6,-6,-16,-47,-66,-61,-66,-94,-78,-83,-71,-93,-33,-58,-36,-107,-35,-38,-18,-10,0,0,213,0,179,24,28,21,21,21,17,18,51,46,46,9,11,-66,-56,-419,-423,-29990,-29991]} 1. e4 c5 {[%emt 0:00:39]} 2. Nf3 {[%emt 0:00:32][%cal Bg1f3,Bf3d4,Bd4b5,Bb5a3][%mdl 32]} Nc6 {[%emt 0:00:39]} 3. d4 {[%emt 0:00:10]} cxd4 {[%emt 0:00:06]} 4. Nxd4 {[%emt 0:00:02]} Nf6 {[%emt 0:00:28]} 5. Nc3 {[%emt 0:00:11]} e5 {[%emt 0:00:25]} 6. Ndb5 {[%emt 0:00:09]} d6 {[%emt 0:00:08]} 7. a4 {[%emt 0:00:26]} a6 {[%emt 0:01:17]} 8. Na3 {[%emt 0:00:13]} Bg4 {[%emt 0:00:49] B33: Sicilian: Pelikan and Sveshnikov Variations.} 9. Be2 {[%emt 0:02:07]} Bxe2 {[%emt 0:00:28]} 10. Qxe2 {[%emt 0:00:05]} d5 {[%emt 0:00:16] The position is equal.} 11. Bg5 {[%emt 0:00:15] Strongly threatening exd5. 11.Bg5 is better than 11.exd5.} dxe4 {[%emt 0:00:45]} 12. Nxe4 {[%emt 0:00:40]} Qa5+ {[%emt 0:01:04]} 13. c3 {[%emt 0:00:12]} Nxe4 {[%emt 0:00:07]} 14. Qxe4 {[%emt 0:00:05]} Bxa3 {[%emt 0:00:22]} 15. Rxa3 {[%emt 0:00:04]} O-O {[%emt 0:01:18]} 16. O-O {[%emt 0:00:06]} Qc7 {[%emt 0:02:51] [#]} 17. Raa1 $146 {[%emt 0:07:15]} ({Predecessor:} 17. Rd1 f6 18. Be3 Rad8 19. Raa1 Kh8 20. b4 Rxd1+ 21. Rxd1 Rd8 22. Rd5 Ne7 23. Rxd8+ Qxd8 {½-½ (46) Malicka,M (2329)-Li,E (2403) San Jose 2022}) 17... h6 {[%emt 0:16:19]} 18. Be3 {[%emt 0:01:49]} f5 {[%emt 0:14:03]} 19. Qc4+ {[%emt 0:19:24]} Rf7 {[%emt 0:03:50]} 20. a5 {[%emt 0:11:50]} e4 {[%emt 0:13:27]} 21. Bb6 {[%emt 0:23:31]} Qd6 {[%emt 0:04:51]} 22. Rad1 {[%emt 0:02:41]} Qg6 {[%emt 0:00:55]} 23. Bc7 {[%emt 0:05:14] Prevents Ne5.} Kh7 {[%emt 0:01:51]} 24. Bf4 {[%emt 0:00:17]} Nxa5 {[%emt 0:08:50]} 25. Qa2 {[%emt 0:00:05]} Nc6 {[%emt 0:00:25]} 26. Rd6 {[%emt 0:00:08]} Qh5 {[%emt 0:01:17]} 27. Rfd1 {[%emt 0:01:36]} Rf6 {[%emt 0:07:57]} (27... Re7 $17) 28. h3 $15 {[%emt 0:09:58] Prevents Qg4.} Raf8 {[%emt 0:04:31]} 29. Rd7 {[%emt 0:02:02]} (29. Qb3 $15) 29... R8f7 {[%emt 0:02:55]} ({Black should play} 29... Qh4 $17 30. g3 Qxh3) 30. Qb3 {[%emt 0:00:35]} Rxd7 {[%emt 0:03:13]} 31. Rxd7 {[%emt 0:00:01]} Rg6 {[%emt 0:02:52]} 32. Qxb7 {[%emt 0:07:01]} (32. Qf7 Nd8 $1 33. Qd5 Ne6 $17) 32... Na5 $2 {[%emt 0:06:52] [#]} (32... Qe2 $11 33. Qb6 Qe1+ 34. Kh2 Qf1) 33. Qc7 $2 {[%emt 0:03:27]} ({White must play} 33. Qd5 $1 $18 {[%cal Rd5a5]}) 33... Nc6 {[%emt 0:00:28]} (33... Qxh3 $1 $11 34. g3 (34. Bg3 Qg4 $15) 34... Nc6) 34. Bg3 $2 {[%emt 0:02:18]} ({Better is} 34. Rd6 $18 Rxd6 35. Bxd6 (35. Qxd6 Qg6 $14)) 34... e3 {[%emt 0:00:37] And now ...e2 would win.} 35. fxe3 {[%emt 0:00:26] Black must now prevent Kf2.} ({Wrong is} 35. f3 $2 Qg5 36. Kf1 (36. Kh2 $2 e2 $19) 36... Qxg3 $19) 35... Qe2 {[%emt 0:00:32]} 36. Qf4 {[%emt 0:00:26]} Qxb2 {[%emt 0:00:12]} ({Not} 36... Qc2 37. Kh2 $16 (37. Qf2 Qe4 $16)) 37. Qxf5 {[%emt 0:00:35]} Qxc3 {[%emt 0:00:35]} 38. Qe4 {[%emt 0:02:46] Hoping for Rd6.} Qb4 {[%emt 0:00:44]} 39. Qd3 {[%emt 0:00:25]} Qb5 {[%emt 0:00:24] Threatens to win with ...Qxd3.} 40. Qc2 {[%emt 0:00:47]} (40. Bc7 $11) 40... Nb4 $1 {[%emt 0:00:25][%csl LRc2,LRd7]} 41. Qc8 {[%emt 0:14:02][%mdl 8192]} Rxg3 $19 {[%emt 0:03:51]} 42. Rb7 {[%emt 0:02:46] [#]} (42. Rd8 $19 Qc6 43. Rh8+ Kg6 44. Qxc6+ Nxc6 45. Rc8) 42... Qd5 $1 {[%emt 0:01:15] Weighted Error Value: White=0.69/Black=0.25 (precise)} 0-1